bitfinex-derivatives/quotes_BTCF0:USTF0_20241005
["timestamp","ask_amount","ask_price","bid_price","bid_amount"]
[1728106347253,0.0888309,62126.0,62124.0,0.01834072]
[1728106347448,0.0888309,62126.0,62124.0,0.056335]
[1728106348158,0.0928309,62126.0,62124.0,0.056335]
[1728106349559,0.0968309,62126.0,62124.0,0.056335]
[1728106350062,0.0928309,62126.0,62124.0,0.056335]
[1728106350260,0.0958309,62126.0,62124.0,0.056335]
[1728106351358,0.063334,62126.0,62124.0,0.056335]
[1728106359364,0.08883089,62125.0,62124.0,0.056335]
[1728106359565,0.17709733,62125.0,62124.0,0.056335]
[1728106359964,0.08883089,62125.0,62124.0,0.056335]
[1728106360360,0.09183089,62125.0,62124.0,0.056335]
[1728106360561,0.0958309,62125.0,62124.0,0.056335]
[1728106361662,0.27292823,62125.0,62124.0,0.056335]
[1728106366076,0.0958309,62125.0,62124.0,0.056335]
[1728106366567,0.007,62125.0,62124.0,0.056335]
[1728106368166,0.063335,62125.0,62124.0,0.056335]
[1728106375965,0.10275565,62125.0,62124.0,0.056335]
[1728106376466,0.063335,62125.0,62124.0,0.056335]
[1728106380883,0.10275586,62125.0,62124.0,0.056335]
[1728106381579,0.15216723,62125.0,62124.0,0.056335]
[1728106381773,0.18418563,62125.0,62124.0,0.056335]
[1728106381969,0.09583223,62125.0,62124.0,0.056335]
[1728106382474,0.09582704,62125.0,62124.0,0.417135]
[1728106382789,0.04642086,62125.0,62124.0,0.417135]
[1728106382973,0.04642086,62125.0,62124.0,1.500055]
[1728106383177,0.02983311,62125.0,62124.0,1.500055]
[1728106383377,0.16857375,62131.0,62124.0,1.500055]
[1728106383378,0.14494242,62130.0,62124.0,1.500055]
[1728106383581,0.14494242,62130.0,62125.0,0.48288]
[1728106383776,0.0075,62131.0,62125.0,0.48288]
[1728106383979,0.15244242,62131.0,62130.0,0.05633]
[1728106384176,0.14494242,62131.0,62130.0,0.53917]
[1728106384376,0.14494242,62133.0,62131.0,0.056329]
[1728106384678,0.14494242,62133.0,62131.0,0.088729]
[1728106384679,0.04940079,62132.0,62131.0,0.088729]
[1728106385283,0.14494242,62133.0,62131.0,0.0324]
[1728106385579,0.14494242,62134.0,62133.0,0.056327]
[1728106385776,0.19434321,62134.0,62133.0,0.056327]
[1728106386179,0.04940079,62134.0,62133.0,0.056327]
[1728106386373,0.04940079,62134.0,62131.0,0.0324]
[1728106386374,0.14494242,62135.0,62134.0,0.056327]
[1728106386577,0.19434294,62135.0,62134.0,0.056327]
[1728106387381,0.17098849,62139.0,62135.0,0.056326]
[1728106387382,0.14494242,62136.0,62135.0,0.056326]
[1728106387577,0.19434294,62136.0,62135.0,0.056326]
[1728106388382,0.04940052,62136.0,62135.0,0.056326]
[1728106388688,0.19434294,62136.0,62135.0,0.056326]
[1728106388988,0.05340052,62136.0,62135.0,0.056326]
[1728106389485,0.05540052,62136.0,62135.0,0.056326]
[1728106389680,0.006,62136.0,62135.0,0.056326]
[1728106390583,0.006,62136.0,62135.0,0.0751276]
[1728106391180,0.006,62136.0,62135.0,0.4359276]
[1728106392083,0.006,62136.0,62135.0,0.0751276]
[1728106392289,0.006,62136.0,62135.0,0.4359276]
[1728106396486,0.006,62136.0,62135.0,0.0751276]
[1728106396689,0.006,62136.0,62135.0,0.4359276]
[1728106397098,0.09481143,62136.0,62135.0,0.4359276]
[1728106397682,0.04541163,62136.0,62135.0,0.4359276]
[1728106397900,0.006,62136.0,62135.0,0.4359276]
[1728106404493,0.006,62136.0,62135.0,0.5059276]
[1728106406697,0.006,62136.0,62135.0,0.8667276]
[1728106412206,0.04540495,62136.0,62135.0,0.8667276]
[1728106417110,0.04540495,62136.0,62135.0,0.1451276]
[1728106417309,0.04540495,62136.0,62135.0,0.8667276]
[1728106419702,0.006,62136.0,62135.0,0.8667276]
[1728106420306,0.006,62136.0,62135.0,0.7967276]
[1728106420505,0.006,62136.0,62135.0,0.8667276]
[1728106422998,0.006,62136.0,62135.0,0.1451276]
[1728106423209,0.006,62136.0,62135.0,0.8667276]
[1728106427617,0.006,62136.0,62135.0,0.7967276]
[1728106427813,0.006,62136.0,62135.0,0.8667276]
[1728106435608,0.04540653,62136.0,62135.0,0.8667276]
[1728106440815,0.04540653,62136.0,62135.0,0.7967276]
[1728106441414,0.23974628,62136.0,62135.0,0.7967276]
[1728106441609,0.09480386,62136.0,62135.0,0.7967276]
[1728106441821,0.006,62136.0,62135.0,0.7967276]
[1728106446320,0.006,62136.0,62135.0,0.4359276]
[1728106446528,0.006,62136.0,62135.0,0.0751276]
[1728106446721,0.006,62136.0,62135.0,0.4359276]
[1728106447425,0.006,62136.0,62135.0,0.5539927]
[1728106448323,0.006,62136.0,62135.0,0.5059276]
[1728106449018,0.006,62136.0,62135.0,0.5539927]
[1728106450029,0.006,62136.0,62135.0,0.5059276]
[1728106450030,0.04540977,62136.0,62135.0,0.5059276]
[1728106454424,0.006,62136.0,62135.0,0.5365276]
[1728106455718,0.006,62136.0,62135.0,0.1757276]
[1728106455923,0.006,62136.0,62135.0,0.8973276]
[1728106462529,0.006,62136.0,62135.0,0.1757276]
[1728106462836,0.006,62136.0,62135.0,0.8973276]
[1728106463931,0.006,62136.0,62135.0,0.9453883]
[1728106470733,0.0112,62143.0,62142.0,0.056319]
[1728106471043,0.0038,62151.0,62145.0,0.056316]
[1728106471044,0.0075,62149.0,62145.0,0.056316]
[1728106471337,0.0615,62150.0,62147.0,0.07]
[1728106471737,0.056314,62148.0,62147.0,0.07]
[1728106472041,0.21738775,62148.0,62147.0,0.07]
[1728106472241,0.24987186,62148.0,62147.0,0.07]
[1728106473839,0.26387186,62148.0,62147.0,0.07]
[1728106474548,0.26387186,62148.0,62147.0,0.126315]
[1728106474742,0.27787186,62148.0,62147.0,0.126315]
[1728106478542,0.27787186,62148.0,62147.0,0.14457908]
[1728106478543,0.11679336,62148.0,62147.0,0.14457908]
[1728106478944,0.028,62148.0,62147.0,0.14457908]
[1728106487345,0.06740361,62148.0,62147.0,0.14457908]
[1728106490556,0.26155954,62148.0,62147.0,0.14457908]
[1728106492558,0.11679336,62148.0,62147.0,0.14457908]
[1728106493859,0.028,62148.0,62147.0,0.14457908]
[1728106496461,0.028,62148.0,62147.0,0.07457908]
[1728106497751,0.084314,62148.0,62147.0,0.01826408]
[1728106497953,0.084314,62148.0,62146.0,0.3608]
[1728106498161,0.056315,62147.0,62146.0,0.3608]
[1728106499361,0.070315,62147.0,62146.0,0.3608]
[1728106500063,0.084315,62147.0,62146.0,0.417116]
[1728106500263,0.084315,62147.0,62146.0,0.435965]
[1728106502353,0.17311298,62147.0,62146.0,0.435965]
[1728106503256,0.31792364,62147.0,62146.0,0.435965]
[1728106504266,0.17311298,62147.0,62146.0,0.435965]
[1728106504773,0.11679798,62147.0,62146.0,0.435965]
[1728106509169,0.028,62147.0,62146.0,0.435965]
[1728106518568,0.084315,62147.0,62146.0,0.379649]
[1728106518774,0.084315,62147.0,62143.0,0.067518]
[1728106518775,0.028,62147.0,62143.0,0.067518]
[1728106518979,0.126317,62144.0,62143.0,0.0112]
[1728106519473,0.609077,62144.0,62143.0,0.0112]
[1728106519872,0.126317,62144.0,62143.0,0.0112]
[1728106521574,0.139317,62144.0,62143.0,0.0112]
[1728106521977,0.151317,62144.0,62143.0,0.0112]
[1728106524078,0.24012242,62144.0,62143.0,0.0112]
[1728106528783,0.2401237,62144.0,62143.0,0.0112]
[1728106530479,0.38484623,62144.0,62143.0,0.0112]
[1728106532083,0.151317,62144.0,62143.0,0.0112]
[1728106536480,0.081317,62144.0,62143.0,0.0112]
[1728106536681,0.081317,62144.0,62143.0,0.067518]
[1728106536884,0.025,62144.0,62143.0,0.067518]
[1728106539577,0.06440722,62144.0,62143.0,0.067518]
[1728106544280,0.11380121,62144.0,62143.0,0.067518]
[1728106546989,0.18607375,62144.0,62143.0,0.067518]
[1728106547185,0.025,62144.0,62143.0,0.067518]
[1728106558400,0.025,62144.0,62143.0,0.137518]
[1728106561306,0.025,62144.0,62143.0,1.220278]
[1728106561493,0.0075,62152.0,62143.0,1.581078]
[1728106561691,0.0075,62152.0,62151.0,0.126311]
[1728106561903,0.063804,62159.0,62154.0,0.056308]
[1728106562105,0.063804,62159.0,62155.0,0.07]
[1728106562106,0.26597194,62158.0,62155.0,0.07]
[1728106562302,0.08878631,62157.0,62156.0,0.056307]
[1728106562803,0.03940048,62157.0,62156.0,0.056307]
[1728106562999,0.08878631,62157.0,62156.0,0.056307]
[1728106564093,0.08878631,62157.0,62156.0,0.057307]
[1728106564094,0.014,62157.0,62156.0,0.057307]
[1728106564301,0.11478631,62157.0,62156.0,0.058307]
[1728106564700,0.27551573,62157.0,62156.0,0.058307]
[1728106565006,0.11478631,62157.0,62156.0,0.058307]
[1728106565203,0.18672945,62157.0,62156.0,0.058307]
[1728106565408,0.18672945,62157.0,62156.0,0.07668588]
[1728106565599,0.27551576,62157.0,62156.0,0.07668588]
[1728106566407,0.06539832,62157.0,62156.0,0.07668588]
[1728106566606,0.06539832,62157.0,62156.0,0.65122588]
[1728106566807,0.02149908,62157.0,62156.0,1.25122588]
[1728106567007,0.0112,62163.0,62156.0,1.25122588]
[1728106567207,0.14461431,62169.0,62156.0,1.25122588]
[1728106567208,0.0075,62167.0,62166.0,0.056298]
[1728106567407,0.14461431,62169.0,62167.0,0.056297]
[1728106567711,0.08876677,62168.0,62167.0,0.056297]
[1728106567910,0.23338108,62168.0,62167.0,0.056297]
[1728106568118,0.08876677,62168.0,62163.0,0.0112]
[1728106568411,0.14461431,62166.0,62163.0,0.0112]
[1728106568601,0.23338108,62165.0,62162.0,0.056301]
[1728106568798,0.03939181,62164.0,62162.0,0.056301]
[1728106569198,0.07,62167.0,62162.0,0.056301]
[1728106570201,0.07,62167.0,62163.0,0.001]
[1728106570407,0.07,62167.0,62163.0,0.0573]
[1728106571220,0.07,62167.0,62163.0,0.0563]
[1728106571427,0.0737,62173.0,62166.0,0.07]
[1728106571633,0.00241315,62172.0,62168.0,0.056295]
[1728106571821,0.00241315,62172.0,62170.0,0.056294]
[1728106572127,0.00241315,62172.0,62171.0,0.056293]
[1728106574024,0.00241315,62172.0,62171.0,0.057293]
[1728106574227,0.00241315,62172.0,62171.0,0.058293]
[1728106575319,0.00241315,62172.0,62171.0,0.002]
[1728106575529,0.05870515,62172.0,62171.0,0.002]
[1728106577231,0.14747214,62172.0,62171.0,0.002]
[1728106577433,0.23589078,62172.0,62171.0,0.002]
[1728106577632,0.32465777,62172.0,62171.0,0.002]
[1728106578431,0.14747214,62172.0,62171.0,0.002]
[1728106583233,0.05870515,62172.0,62171.0,0.002]
[1728106584336,0.09809843,62172.0,62171.0,0.002]
[1728106585039,0.14747524,62172.0,62171.0,0.002]
[1728106588433,0.10808196,62172.0,62171.0,0.002]
[1728106589844,0.05870515,62172.0,62171.0,0.002]
[1728106593631,0.12870515,62172.0,62171.0,0.002]
[1728106596739,0.05870515,62172.0,62171.0,0.002]
[1728106597046,0.12870515,62172.0,62171.0,0.002]
[1728106598839,0.27517368,62172.0,62171.0,0.002]
[1728106599749,0.21747647,62172.0,62171.0,0.002]
[1728106599954,0.37834858,62172.0,62171.0,0.002]
[1728106602549,0.21747647,62172.0,62171.0,0.002]
[1728106602751,0.37835385,62172.0,62171.0,0.002]
[1728106603452,0.16809898,62172.0,62171.0,0.002]
[1728106604142,0.21747633,62172.0,62171.0,0.002]
[1728106605459,0.36227332,62172.0,62171.0,0.002]
[1728106606462,0.056298,62166.0,62165.0,0.0112]
[1728106606648,0.0563,62163.0,62162.0,0.01822862]
[1728106606849,0.056301,62162.0,62161.0,0.3608]
[1728106608451,0.056301,62162.0,62161.0,0.3618]
[1728106609161,0.056301,62162.0,62161.0,0.37995642]
[1728106609346,0.056301,62162.0,62161.0,0.38095642]
[1728106611863,0.09569719,62162.0,62161.0,0.38095642]
[1728106612957,0.09569719,62162.0,62161.0,0.43725842]
[1728106614860,0.14507763,62162.0,62161.0,0.43725842]
[1728106618572,0.14507763,62162.0,62161.0,0.07645842]
[1728106621962,0.056301,62162.0,62161.0,0.07645842]
[1728106624068,0.056301,62162.0,62161.0,0.02015642]
[1728106624272,0.056301,62162.0,62161.0,0.002]
[1728106624273,0.126301,62162.0,62161.0,0.002]
[1728106624475,0.16569735,62162.0,62161.0,0.002]
[1728106629575,0.1845461,62162.0,62161.0,0.002]
[1728106629870,0.1845493,62162.0,62161.0,0.002]
[1728106630068,0.23393354,62162.0,62161.0,0.002]
[1728106630261,0.36154818,62162.0,62161.0,0.002]
[1728106630460,0.41093242,62162.0,62161.0,0.002]
[1728106630873,0.39208367,62162.0,62161.0,0.002]
[1728106631675,0.21508479,62162.0,62161.0,0.002]
[1728106632580,0.39198909,62162.0,62161.0,0.002]
[1728106632874,0.21508479,62162.0,62161.0,0.002]
[1728106634878,0.2150885,62162.0,62161.0,0.002]
[1728106636980,0.126301,62162.0,62161.0,0.002]
[1728106640386,0.608901,62162.0,62161.0,0.002]
[1728106640680,0.969701,62162.0,62161.0,0.002]
[1728106640875,0.487101,62162.0,62161.0,0.002]
[1728106641786,1.00910439,62162.0,62161.0,0.002]
[1728106642299,1.60910439,62162.0,62161.0,0.002]
[1728106642878,1.60910439,62162.0,62158.0,0.0112]
[1728106643082,0.126304,62159.0,62158.0,0.0112]
[1728106643284,0.126304,62159.0,62150.0,0.0043]
[1728106643285,0.056308,62155.0,62154.0,0.0112]
[1728106643482,0.126304,62159.0,62150.0,0.0038]
[1728106643483,0.056311,62151.0,62150.0,0.0112]
[1728106643677,0.056311,62151.0,62149.0,0.01888801]
[1728106643878,0.07,62152.0,62148.0,0.056314]
[1728106643879,0.056312,62150.0,62148.0,0.056314]
[1728106644082,0.07,62149.0,62148.0,0.056314]
[1728106645088,0.16571782,62149.0,62148.0,0.056314]
[1728106645589,0.16771782,62149.0,62148.0,0.056314]
[1728106645887,0.16771782,62149.0,62146.0,0.02932332]
[1728106645888,0.11140482,62149.0,62146.0,0.02932332]
[1728106646081,0.056315,62147.0,62146.0,0.01812332]
[1728106646282,0.03940482,62147.0,62146.0,0.056316]
[1728106646488,0.03940502,62148.0,62147.0,0.056315]
[1728106648582,0.04140502,62148.0,62147.0,0.056315]
[1728106648777,0.04240502,62148.0,62147.0,0.056315]
[1728106649584,0.04240501,62148.0,62147.0,0.056315]
[1728106651984,0.003,62148.0,62147.0,0.056315]
[1728106659996,0.04240545,62148.0,62147.0,0.056315]
[1728106662293,0.003,62148.0,62147.0,0.056315]
[1728106662492,0.04240506,62148.0,62147.0,0.056315]
[1728106664301,0.056316,62146.0,62145.0,0.02070927]
[1728106664508,0.056316,62146.0,62145.0,0.00241371]
[1728106664509,0.16572106,62146.0,62145.0,0.00241371]
[1728106665191,0.21511409,62146.0,62145.0,0.00241371]
[1728106665610,0.35982148,62146.0,62145.0,0.00241371]
[1728106666109,0.36182148,62146.0,62145.0,0.00241371]
[1728106666507,0.36282148,62146.0,62145.0,0.00241371]
[1728106667003,0.27402339,62146.0,62145.0,0.00241371]
[1728106667202,0.129316,62146.0,62145.0,0.00241371]
[1728106681008,0.129316,62146.0,62143.0,0.0112]
[1728106681009,0.056317,62144.0,62143.0,0.0112]
[1728106681223,0.05632,62141.0,62140.0,0.0112]
[1728106681512,0.05632,62141.0,62136.0,0.060125]
[1728106681513,0.056324,62137.0,62136.0,0.0112]
[1728106681717,0.153317,62145.0,62133.0,0.3645]
[1728106681718,0.07,62138.0,62133.0,0.3608]
[1728106681909,0.126327,62134.0,62133.0,0.3608]
[1728106682910,0.126327,62134.0,62133.0,0.3828]
[1728106683417,0.126327,62134.0,62133.0,0.40140462]
[1728106683810,0.126327,62134.0,62133.0,0.04060462]
[1728106684007,0.126327,62134.0,62133.0,0.022]
[1728106684609,0.487127,62134.0,62133.0,0.022]
[1728106684807,0.52654119,62134.0,62133.0,0.022]
[1728106685419,0.54502172,62134.0,62133.0,0.022]
[1728106685623,0.59443131,62134.0,62133.0,0.022]
[1728106687419,0.73895519,62134.0,62133.0,0.022]
[1728106688016,0.59443131,62134.0,62133.0,0.022]
[1728106690224,0.50560753,62134.0,62133.0,0.022]
[1728106690632,0.98844753,62134.0,62133.0,0.022]
[1728106691020,0.98844753,62134.0,62129.0,0.0112]
[1728106691021,0.05633,62130.0,62129.0,0.0112]
[1728106691219,0.056333,62127.0,62125.0,0.0112]
[1728106691432,0.056333,62127.0,62123.0,0.056336]
[1728106691433,0.056334,62126.0,62123.0,0.056336]
[1728106692320,0.042334,62126.0,62123.0,0.056336]
[1728106692632,0.043334,62126.0,62124.0,0.01641453]
[1728106693823,0.044334,62126.0,62124.0,0.01941453]
[1728106695233,0.002,62126.0,62124.0,0.01941453]
[1728106695434,0.056335,62125.0,62124.0,0.01941453]
[1728106696637,0.057335,62125.0,62124.0,0.01841453]
[1728106697236,0.057335,62125.0,62124.0,0.01541453]
[1728106697237,0.127335,62125.0,62124.0,0.01541453]
[1728106697433,0.128335,62125.0,62124.0,0.01741453]
[1728106698140,0.128335,62125.0,62124.0,0.01641453]
[1728106706143,0.058335,62125.0,62124.0,0.01641453]
[1728106706339,0.128335,62125.0,62124.0,0.01641453]
[1728106709445,0.16775638,62125.0,62124.0,0.01641453]
[1728106711250,0.16775638,62125.0,62124.0,0.014]
[1728106711843,0.16775864,62125.0,62124.0,0.014]
[1728106712253,0.128335,62125.0,62124.0,0.014]
[1728106712452,0.128335,62125.0,62124.0,0.015]
[1728106713053,0.489135,62125.0,62124.0,0.002]
[1728106713351,0.056337,62123.0,62122.0,0.0112]
[1728106713547,0.056337,62123.0,62121.0,0.062]
[1728106713858,0.07,62122.0,62121.0,0.062]
[1728106715856,0.07,62122.0,62121.0,0.073]
[1728106716053,0.07,62122.0,62121.0,0.075]
[1728106716254,0.071,62122.0,62121.0,0.075]
[1728106716451,0.072,62122.0,62121.0,0.075]
[1728106717658,0.128337,62122.0,62121.0,0.075]
[1728106718558,0.128337,62122.0,62121.0,0.0431]
[1728106719662,0.128337,62122.0,62121.0,0.013]
[1728106723058,0.058337,62122.0,62121.0,0.013]
[1728106723264,0.128337,62122.0,62121.0,0.013]
[1728106742365,0.128337,62122.0,62121.0,0.07708094]
[1728106747379,0.128337,62122.0,62121.0,0.013]
[1728106748377,0.128337,62122.0,62121.0,0.07717923]
[1728106750281,0.16776109,62122.0,62121.0,0.013]
[1728106756879,0.128337,62122.0,62121.0,0.013]
[1728106757277,0.128337,62122.0,62121.0,0.07717923]
[1728106758292,0.128337,62122.0,62121.0,0.013]
[1728106760277,0.058337,62122.0,62121.0,0.013]
[1728106763686,0.058337,62122.0,62121.0,0.069338]
[1728106764291,0.39346,62127.0,62121.0,0.219669]
[1728106764292,0.00096,62127.0,62121.0,0.219669]
[1728106764590,0.06753,62131.0,62130.0,0.05633]
[1728106764802,0.05633,62131.0,62130.0,0.10443561]
[1728106765092,0.64002412,62135.0,62130.0,0.04810561]
[1728106765093,0.07,62132.0,62130.0,0.04810561]
[1728106765286,0.07,62132.0,62131.0,0.056329]
[1728106765983,0.056327,62134.0,62129.0,0.04810561]
[1728106766189,0.056327,62134.0,62132.0,0.056328]
[1728106767789,0.056327,62134.0,62132.0,0.057328]
[1728106768383,0.058327,62134.0,62132.0,0.057328]
[1728106768989,0.419127,62134.0,62132.0,0.057328]
[1728106769492,0.056327,62133.0,62132.0,0.057328]
[1728106770789,0.056327,62133.0,62132.0,0.01923058]
[1728106771191,0.056327,62133.0,62132.0,0.001]
[1728106771385,0.058327,62133.0,62132.0,0.001]
[1728106772287,0.09774508,62133.0,62132.0,0.001]
[1728106773893,0.09774508,62133.0,62132.0,0.057328]
[1728106774492,0.058327,62133.0,62132.0,0.057328]
[1728106775693,0.09774427,62133.0,62132.0,0.057328]
[1728106776297,0.0977443,62133.0,62132.0,0.057328]
[1728106776490,0.058327,62133.0,62132.0,0.057328]
[1728106794610,0.14715245,62133.0,62132.0,0.057328]
[1728106798215,0.21715245,62133.0,62132.0,0.057328]
[1728106800206,0.21715224,62133.0,62132.0,0.057328]
[1728106802613,0.128327,62133.0,62132.0,0.057328]
[1728106802813,0.072,62133.0,62132.0,0.057328]
[1728106804806,0.072,62133.0,62132.0,0.001]
[1728106804807,0.128327,62133.0,62132.0,0.001]
[1728106807514,0.190327,62133.0,62132.0,0.001]
[1728106808119,0.056333,62127.0,62126.0,0.0112]
[1728106808419,0.056333,62127.0,62122.0,0.0112]
[1728106808420,0.056337,62123.0,62122.0,0.0112]
[1728106808621,0.09575569,62127.0,62118.0,0.372]
[1728106808622,0.056339,62121.0,62118.0,0.372]
[1728106808919,0.07,62120.0,62118.0,0.37922114]
[1728106809510,0.23377287,62119.0,62118.0,0.37922114]
[1728106810115,0.23377287,62119.0,62118.0,0.07476214]
[1728106810622,0.04042357,62119.0,62118.0,0.08576214]
[1728106810805,0.14617721,62119.0,62118.0,0.08576214]
[1728106811910,0.14717721,62119.0,62118.0,0.08576214]
[1728106813209,0.09776357,62119.0,62118.0,0.08576214]
[1728106813409,0.0414235,62119.0,62118.0,0.08576214]
[1728106817415,0.002,62119.0,62118.0,0.08576214]
[1728106819808,0.002,62119.0,62118.0,0.15576214]
[1728106828430,0.002,62119.0,62118.0,0.51656214]
[1728106829828,0.002,62119.0,62118.0,0.44656214]
[1728106830137,0.05834,62119.0,62118.0,0.44656214]
[1728106832327,0.05834,62119.0,62118.0,0.08576214]
[1728106839540,0.09776417,62119.0,62118.0,0.08576214]
[1728106840740,0.09776417,62119.0,62118.0,0.011]
[1728106842833,0.09676417,62119.0,62118.0,0.005]
[1728106843035,0.09676417,62119.0,62118.0,0.006]
[1728106847540,0.05734,62119.0,62118.0,0.006]
[1728106849344,0.12734,62119.0,62118.0,0.006]
[1728106862665,0.16676589,62119.0,62118.0,0.006]
[1728106864557,0.21618356,62119.0,62118.0,0.006]
[1728106866463,0.36111809,62119.0,62118.0,0.006]
[1728106866667,0.36111796,62119.0,62118.0,0.006]
[1728106866964,0.16676583,62119.0,62118.0,0.006]
[1728106869665,0.12734,62119.0,62118.0,0.006]
[1728106870053,0.12734,62119.0,62115.0,0.0102]
[1728106870255,0.126343,62116.0,62115.0,0.0102]
[1728106870454,0.126343,62116.0,62115.0,0.0027]
[1728106871267,0.126343,62116.0,62115.0,0.05080561]
[1728106871467,0.127343,62116.0,62115.0,0.06080561]
[1728106872266,0.128343,62116.0,62115.0,0.06080561]
[1728106875073,0.128343,62116.0,62115.0,0.0127]
[1728106880170,0.058343,62116.0,62115.0,0.069044]
[1728106880370,0.058343,62116.0,62115.0,0.130644]
[1728106880766,0.128343,62116.0,62115.0,0.130644]
[1728106884883,0.16776814,62116.0,62115.0,0.130644]
[1728106886478,0.128343,62116.0,62115.0,0.130644]
[1728106886678,0.16776825,62116.0,62115.0,0.130644]
[1728106890175,0.16776825,62116.0,62115.0,0.127944]
[1728106891577,0.1677686,62116.0,62115.0,0.127944]
[1728106892888,0.128343,62116.0,62115.0,0.127944]
[1728106893385,0.128343,62116.0,62115.0,0.096444]
[1728106895085,0.058343,62116.0,62115.0,0.096444]
[1728106898785,0.058343,62116.0,62115.0,0.14454961]
[1728106899089,0.058343,62116.0,62115.0,0.096444]
[1728106899787,0.0414256,62116.0,62115.0,0.096444]
[1728106899992,0.0414256,62116.0,62115.0,0.128344]
[1728106901391,0.0414256,62116.0,62115.0,0.489144]
[1728106901392,0.04142531,62116.0,62115.0,0.489144]
[1728106901591,0.002,62116.0,62115.0,0.489144]
[1728106904496,0.04142357,62116.0,62115.0,0.489144]
[1728106905183,0.04142357,62116.0,62115.0,0.128344]
[1728106905385,0.04142357,62116.0,62115.0,0.489144]
[1728106905586,0.09776657,62116.0,62115.0,0.01]
[1728106906196,0.09777015,62116.0,62115.0,0.01]
[1728106907695,0.058343,62116.0,62115.0,0.01]
[1728106916196,0.058343,62116.0,62115.0,0.066344]
[1728106929818,0.09776839,62116.0,62115.0,0.066344]
[1728106931618,0.04142539,62116.0,62115.0,0.066344]
[1728106934312,0.04142443,62116.0,62115.0,0.066344]
[1728106935925,0.04142443,62116.0,62115.0,0.427144]
[1728106937422,0.04142421,62116.0,62115.0,0.427144]
[1728106937925,0.04142421,62116.0,62115.0,0.47524961]
[1728106937926,0.002,62116.0,62115.0,0.47524961]
[1728106939620,0.002,62116.0,62115.0,0.11444961]
[1728106939824,0.002,62116.0,62115.0,0.47524961]
[1728106940913,0.002,62116.0,62115.0,0.427144]
[1728106941114,0.072,62116.0,62115.0,0.427144]
[1728106941509,0.072,62116.0,62115.0,0.4752411]
[1728106941712,0.072,62116.0,62115.0,0.427144]
[1728106942625,0.072,62116.0,62115.0,0.47524046]
[1728106942817,0.072,62116.0,62115.0,0.427144]
[1728106943123,0.072,62116.0,62115.0,0.47524103]
[1728106943825,0.072,62116.0,62115.0,0.427144]
[1728106944320,0.072,62116.0,62115.0,0.47524129]
[1728106945028,0.072,62116.0,62115.0,0.427144]
[1728106952934,0.11142427,62116.0,62115.0,0.427144]
[1728106954629,0.072,62116.0,62115.0,0.427144]
[1728106954830,0.11142305,62116.0,62115.0,0.427144]
[1728106957638,0.072,62116.0,62115.0,0.427144]
[1728106958034,0.11142272,62116.0,62115.0,0.427144]
[1728106958236,0.072,62116.0,62115.0,0.427144]
[1728106958837,0.11142279,62116.0,62115.0,0.427144]
[1728106959223,0.11142333,62116.0,62115.0,0.427144]
[1728106959636,0.072,62116.0,62115.0,0.427144]
[1728106961341,0.072,62116.0,62115.0,0.47525542]
[1728106962540,0.072,62116.0,62115.0,0.11445542]
[1728106964428,0.002,62116.0,62115.0,0.066344]
[1728106964945,0.002,62116.0,62115.0,0.11446196]
[1728106967039,0.002,62116.0,62115.0,0.066344]
[1728106970655,0.002,62116.0,62115.0,0.427144]
[1728106971750,0.002,62116.0,62115.0,0.5452641]
[1728106971942,0.002,62116.0,62115.0,0.497144]
[1728106972145,0.002,62116.0,62115.0,0.56128481]
[1728106974356,0.002,62116.0,62115.0,0.980104]
[1728106974560,0.002,62116.0,62115.0,0.619304]
[1728106974755,0.002,62116.0,62115.0,0.980104]
[1728106974949,0.002,62116.0,62115.0,0.497144]
[1728106975354,0.002,62116.0,62115.0,0.980104]
[1728106975861,0.002,62116.0,62115.0,0.497144]
[1728106980861,0.002,62116.0,62115.0,0.136344]
[1728106981058,0.002,62116.0,62115.0,0.497144]
[1728106981257,0.002,62116.0,62115.0,0.136344]
[1728106981564,0.002,62116.0,62115.0,0.497144]
[1728106986859,0.0037,62123.0,62122.0,0.056337]
[1728106987068,0.0996,62130.0,62128.0,0.056332]
[1728106987362,0.0959,62130.0,62128.0,0.126332]
[1728106987669,0.064,62130.0,62128.0,0.126332]
[1728106987863,0.0037,62136.0,62128.0,0.487132]
[1728106988056,0.0037,62139.0,62134.0,0.07]
[1728106988363,0.1661,62141.0,62134.0,0.07]
[1728106988865,0.1661,62141.0,62139.0,0.056322]
[1728106989359,0.0961,62141.0,62137.0,0.07]
[1728106989667,0.0961,62141.0,62140.0,0.056321]
[1728106989866,0.13550914,62141.0,62140.0,0.056321]
[1728106990059,0.14950914,62141.0,62140.0,0.056321]
[1728106990565,0.16350914,62141.0,62140.0,0.056321]
[1728106990956,0.14950914,62141.0,62140.0,0.056321]
[1728106991261,0.16350914,62141.0,62140.0,0.057321]
[1728106991464,0.14950914,62141.0,62140.0,0.057321]
[1728106991664,0.16350914,62141.0,62140.0,0.057321]
[1728106992060,0.16350922,62141.0,62140.0,0.057321]
[1728106997060,0.1241,62141.0,62140.0,0.057321]
[1728106997570,0.1241,62141.0,62140.0,0.0754672]
[1728107001863,0.0919,62141.0,62140.0,0.1454672]
[1728107002168,0.0592,62141.0,62140.0,0.1454672]
[1728107003770,0.028,62141.0,62140.0,0.1454672]
[1728107004669,0.028,62141.0,62140.0,0.5062672]
[1728107004977,0.00741508,62141.0,62140.0,0.5062672]
[1728107006265,0.00741508,62141.0,62140.0,0.4362672]
[1728107006669,0.01941508,62141.0,62140.0,0.4362672]
[1728107007065,0.025,62141.0,62140.0,0.4372672]
[1728107008478,0.095,62141.0,62140.0,0.4372672]
[1728107010084,0.025,62141.0,62140.0,0.4372672]
[1728107014869,0.025,62141.0,62140.0,0.5072672]